bitfinex-derivatives/quotes_ETHF0:USTF0_20251116
["timestamp","ask_amount","ask_price","bid_price","bid_amount"]
[1763273450353,0.00467617,3210.3,3210.2,0.2323]
[1763273451641,0.24337617,3210.3,3210.2,0.2323]
[1763273454053,0.00467617,3210.3,3210.2,0.2323]
[1763273468068,4.04676199,3211.3,3210.7,0.2411]
[1763273468270,3.2078,3211.3,3211.2,0.2411]
[1763273468664,3.4505,3211.3,3211.2,0.2411]
[1763273471972,0.2427,3211.1,3210.6,1.67382937]
[1763273473368,0.2427,3211.1,3210.5,5.01962937]
[1763273474372,0.2427,3211.1,3211.0,0.2411]
[1763273474575,0.2427,3211.1,3211.0,0.3815]
[1763273477164,3.2078,3211.3,3211.0,0.3815]
[1763273477368,3.4488,3211.3,3211.2,0.225]
[1763273480169,0.241,3211.3,3211.2,0.225]
[1763273486472,0.7321879,3211.6,3211.0,0.1404]
[1763273486678,0.241,3211.6,3211.5,0.3654]
[1763273490982,3.2078,3211.7,3211.6,0.2467]
[1763273495882,0.00278201,3212.1,3212.0,0.3951]
[1763273496083,0.24428201,3212.1,3212.0,0.3951]
[1763273496274,0.00278201,3212.1,3212.0,0.3951]
[1763273496686,0.24428201,3212.1,3212.0,0.3951]
[1763273499684,0.00278201,3212.1,3212.0,0.3951]
[1763273500680,3.2078,3212.6,3212.5,0.3951]
[1763273500882,3.4493,3212.6,3212.5,0.3951]
[1763273501688,3.45151458,3212.6,3212.5,0.39872749]
[1763273503188,3.21001458,3212.6,3212.5,0.39872749]
[1763273503483,0.00221458,3212.6,3212.5,0.39872749]
[1763273503688,1.15726676,3213.7,3213.6,0.2467]
[1763273503689,0.0346,3213.7,3213.6,0.2467]
[1763273503892,1.67107378,3214.3,3213.5,0.1484]
[1763273503893,3.2078,3214.3,3214.2,0.2467]
[1763273504189,0.2415,3214.8,3214.7,0.2467]
[1763273504692,0.2450596,3214.8,3214.7,0.2467]
[1763273504987,0.0035596,3214.8,3214.7,0.2467]
[1763273505887,0.2450596,3214.8,3214.7,0.2467]
[1763273509291,0.0035596,3214.8,3214.7,0.2467]
[1763273513491,3.2078,3215.6,3215.5,0.3951]
[1763273514089,3.4493,3215.6,3215.5,0.3951]
[1763273514584,3.45206683,3215.6,3215.5,0.39732427]
[1763273515179,3.45206683,3215.6,3215.5,0.24892427]
[1763273515379,3.45206683,3215.6,3215.5,0.00222427]
[1763273516289,0.00276683,3215.6,3215.5,0.39732427]
[1763273519399,0.24426683,3215.6,3215.5,0.00222427]
[1763273520194,0.24426683,3215.6,3215.5,0.38562427]
[1763273520492,0.24426683,3215.6,3215.5,0.00222427]
[1763273521098,0.00276683,3215.6,3215.5,0.38562427]
[1763273522091,0.24866683,3215.6,3215.5,0.38562427]
[1763273522400,0.00276683,3215.6,3215.5,0.38562427]
[1763273524186,3.2078,3216.1,3216.0,0.2459]
[1763273524390,0.33839287,3216.4,3216.3,0.2459]
[1763273524596,0.2459,3216.1,3216.0,0.3834]
[1763273525291,0.00389062,3216.1,3216.0,0.3834]
[1763273529893,0.2459,3215.9,3215.8,3.4537]
[1763273530490,0.24979062,3216.1,3216.0,0.2459]
[1763273531194,0.24979062,3216.1,3215.8,3.2078]
[1763273531400,0.2459,3215.9,3215.8,3.4537]
[1763273531785,0.2459,3215.9,3215.8,3.2078]
[1763273531990,0.2459,3215.6,3215.5,0.00222427]
[1763273532487,0.2459,3215.6,3215.5,0.24812427]
[1763273533497,0.00389062,3216.1,3215.5,0.38972427]
[1763273533690,0.238,3215.6,3215.5,0.00222427]
[1763273535798,0.238,3215.3,3214.6,3.2078]
[1763273536098,0.238,3214.7,3214.6,3.4539]
[1763273536402,0.238,3214.7,3214.6,3.2078]
[1763273537102,0.238,3214.7,3214.6,0.00327324]
[1763273539301,0.72762855,3214.8,3214.7,0.2461]
[1763273539506,0.238,3214.7,3214.6,0.00327324]
[1763273540703,0.238,3214.9,3214.8,0.2461]
[1763273540905,0.9656775,3214.9,3214.8,0.2461]
[1763273541107,0.238,3214.7,3214.6,0.24937324]
[1763273541308,0.238,3214.7,3214.6,0.00327324]
[1763273541807,8.08084945,3214.7,3214.6,0.00327324]
[1763273542307,6.9656775,3214.7,3214.6,0.00327324]
[1763273543408,7.80089599,3214.7,3214.6,0.00327324]
[1763273543608,1.80089599,3214.7,3214.6,0.00327324]
[1763273543811,13.5556775,3214.7,3214.6,0.00327324]
[1763273544711,0.9656775,3214.7,3214.6,0.00327324]
[1763273544913,12.4786775,3214.7,3214.6,0.00327324]
[1763273546504,0.238,3214.4,3214.3,0.00466881]
[1763273546711,3.4458,3214.4,3214.3,0.00466881]
[1763273547712,3.4458,3214.4,3214.3,0.0085278]
[1763273548816,0.2352,3213.9,3213.8,3.2078]
[1763273549423,15.2652,3213.9,3213.8,3.2078]
[1763273549714,15.2652,3213.9,3213.8,3.21094121]
[1763273550111,0.2352,3213.9,3213.8,3.21094121]
[1763273550302,15.2652,3213.9,3213.8,3.21094121]
[1763273551917,2.493,3214.3,3214.2,0.236]
[1763273552114,0.0046443,3215.0,3214.3,0.236]
[1763273552420,0.2352,3214.4,3214.3,0.236]
[1763273552711,0.1369443,3215.0,3214.0,0.1348]
[1763273552712,0.2352,3214.1,3214.0,0.236]
[1763273552915,0.1323,3214.5,3213.8,3.21094121]
[1763273553114,0.2352,3213.9,3213.8,3.44694121]
[1763273554115,0.1323,3214.5,3213.8,3.44694121]
[1763273554518,3.2078,3214.4,3213.8,0.23914121]
[1763273555821,0.2352,3213.9,3213.8,0.23914121]
[1763273558015,3.2078,3214.4,3213.8,0.23914121]
[1763273558328,0.2352,3212.9,3212.8,1.66875633]
[1763273558527,0.1353,3212.6,3212.5,0.1416]
[1763273559114,0.1353,3212.6,3212.0,0.1348]
[1763273559317,0.13782676,3212.6,3212.0,0.13795997]
[1763273559516,0.14249557,3212.6,3212.0,0.14262878]
[1763273562317,0.1353,3212.1,3212.0,0.37862878]
[1763273562521,0.1353,3212.1,3212.0,0.14262878]
[1763273562929,0.1353,3212.1,3212.0,0.37862878]
[1763273563820,0.00719557,3212.6,3212.0,0.37862878]
[1763273568342,0.00719557,3212.6,3212.5,0.3708]
[1763273574339,3.2078,3213.2,3213.1,0.236]
[1763273574741,3.2078,3213.6,3213.5,0.3708]
[1763273575647,3.21149967,3213.6,3213.5,0.3708]
[1763273580044,0.00369967,3213.6,3213.5,0.3708]
[1763273580747,0.00466881,3213.9,3213.8,0.2324]
[1763273581845,0.00703217,3213.9,3213.8,0.2324]
[1763273585456,0.1444,3213.6,3213.5,0.1348]
[1763273585646,0.1444,3213.3,3213.2,0.23706881]
[1763273585954,0.73741117,3213.9,3213.2,0.23706881]
[1763273586339,0.00703217,3213.9,3213.2,0.23706881]
[1763273587950,0.1444,3213.3,3213.2,0.23706881]
[1763273589445,0.1444,3213.3,3213.2,0.00466881]
[1763273589645,0.73780545,3213.9,3213.2,0.23706881]
[1763273590056,0.00703217,3213.9,3213.2,0.23706881]
[1763273590648,0.00703217,3213.9,3213.5,0.1478]
[1763273592952,0.00703217,3213.9,3213.8,0.2324]
[1763273594352,3.2078,3214.0,3213.5,0.1478]
[1763273594353,3.2078,3214.0,3213.9,0.2324]
[1763273595148,3.2112243,3214.0,3213.9,0.2324]
[1763273595348,0.0034243,3214.0,3213.9,0.2324]
[1763273598351,2.43e-05,3214.0,3213.9,0.2324]
[1763273599059,0.0046443,3214.3,3214.2,0.2445]
[1763273599254,0.0046443,3214.3,3214.2,3.4523]
[1763273600051,0.00723043,3214.3,3214.2,3.4523]
[1763273602364,0.1569,3215.1,3215.0,0.3933]
[1763273602860,0.1569,3214.6,3214.5,0.1488]
[1763273603363,0.15868811,3214.6,3214.5,0.15156113]
[1763273603762,0.00178811,3214.6,3214.5,0.39606113]
[1763273604462,0.15868811,3214.6,3214.5,0.39606113]
[1763273604764,0.00178811,3214.6,3214.5,0.39606113]
[1763273606559,0.15868811,3214.6,3214.5,0.39606113]
[1763273607675,0.00178811,3214.6,3214.5,0.39606113]
[1763273610271,0.15868811,3214.6,3214.5,0.00276113]
[1763273612173,3.36648811,3214.6,3214.5,0.00276113]
[1763273612374,4.09819513,3214.6,3214.5,0.00276113]
[1763273613476,0.89039513,3214.6,3214.5,0.00276113]
[1763273613666,4.09819513,3214.6,3214.5,0.00276113]
[1763273614976,0.1527,3213.7,3213.6,3.4386]
[1763273615274,3.2078,3214.1,3214.0,0.377]
[1763273615976,3.2078,3214.1,3214.0,0.37966194]
[1763273616682,3.2078,3214.1,3214.0,0.14886194]
[1763273617571,0.1416,3212.4,3212.3,4.87176375]
[1763273617772,0.1416,3212.1,3212.0,0.1462]
[1763273618177,3.2078,3212.2,3212.1,0.2308]
[1763273618476,3.35285777,3212.2,3212.1,0.23370298]
[1763273621877,3.35285777,3212.2,3212.1,0.00290298]
[1763273622075,0.1416,3211.6,3211.5,0.1462]
[1763273622280,0.1416,3211.5,3211.4,3.2078]
[1763273622471,0.1416,3211.1,3210.9,3.2078]
[1763273623175,0.1416,3211.1,3211.0,0.37976469]
[1763273623767,3.2078,3211.8,3211.0,0.37976469]
[1763273627169,3.2078,3211.8,3211.5,0.1462]
[1763273627368,0.1416,3211.1,3211.0,0.37976469]
[1763273627571,0.1416,3211.1,3211.0,0.14896469]
[1763273627773,3.2078,3211.8,3211.0,0.37976469]
[1763273629783,0.00345777,3212.2,3211.0,0.37976469]
[1763273629984,3.2078,3211.5,3211.0,0.37976469]
[1763273630585,3.2078,3212.0,3211.5,0.1462]
[1763273632181,3.2078,3212.0,3211.5,0.377]
[1763273634985,0.1416,3211.6,3211.5,0.377]
[1763273636483,3.3494,3212.0,3211.9,0.2308]
[1763273637683,3.3494,3212.0,3211.5,0.1462]
[1763273638186,0.1416,3211.6,3211.5,0.1462]
[1763273638387,0.142,3211.3,3211.2,3.2078]
[1763273638577,0.142,3211.1,3211.0,0.14896469]
[1763273639079,0.142,3211.1,3211.0,0.37356469]
[1763273640678,3.2078,3211.5,3211.4,0.2246]
[1763273640879,3.3498,3211.5,3211.4,0.2246]
[1763273641184,3.3498,3211.5,3211.0,0.14896469]
[1763273641185,0.142,3211.1,3211.0,0.14896469]
[1763273641684,0.142,3211.1,3211.0,0.37356469]
[1763273642380,0.142,3211.1,3211.0,0.14896469]
[1763273642889,3.2078,3211.5,3211.0,0.37356469]
[1763273645490,3.2078,3211.5,3211.4,0.2246]
[1763273646079,4.08217748,3211.5,3211.4,0.2246]
[1763273648090,4.77793432,3211.5,3211.4,0.2246]
[1763273648592,4.91993432,3211.5,3211.4,0.2246]
[1763273651092,4.08217748,3211.5,3211.4,0.2246]
[1763273651888,4.08217748,3211.5,3211.0,0.14896469]
[1763273652089,1.57239286,3211.4,3211.0,0.14896469]
[1763273652291,0.87437748,3211.3,3211.2,0.2246]
[1763273653797,0.35840544,3211.3,3211.2,3.4324]
[1763273654096,3.2078,3212.0,3211.9,0.2246]
[1763273654801,3.4461,3212.0,3211.5,0.148]
[1763273654989,3.4461,3212.0,3211.5,0.3759]
[1763273654990,0.2383,3211.6,3211.5,0.3759]
[1763273655192,3.2078,3212.0,3211.9,0.2279]
[1763273655390,3.4461,3212.0,3211.9,0.2279]
[1763273662102,3.4461,3212.0,3211.5,0.1365]
[1763273662702,3.4461,3212.0,3211.9,0.2279]
[1763273663802,3.5512,3212.0,3211.5,0.1365]
[1763273664899,0.2383,3211.6,3211.5,0.3644]
[1763273665103,3.3129,3212.0,3211.5,0.1365]
[1763273665404,3.2078,3212.0,3211.5,0.1365]
[1763273665606,3.4461,3212.0,3211.9,0.2279]
[1763273668502,3.4461,3212.0,3211.6,3.2078]
[1763273670401,0.2383,3212.0,3211.6,3.2078]
[1763273670602,0.2257,3211.7,3211.6,3.4356]
[1763273672909,0.72791284,3212.2,3211.6,18.4836]
[1763273673109,0.2257,3211.7,3211.6,18.4836]
[1763273674007,0.2257,3211.7,3211.6,3.2078]
[1763273674208,0.2257,3211.1,3211.0,0.00276469]
[1763273675810,0.2257,3211.1,3211.0,0.37636469]
[1763273683415,0.2257,3211.1,3211.0,15.42536469]
[1763273684014,3.2078,3211.4,3211.3,0.2278]
[1763273684814,3.4335,3211.4,3211.3,0.2278]
[1763273685007,3.4335,3211.4,3211.0,15.19756469]
[1763273686120,0.2257,3211.1,3211.0,15.42536469]
[1763273688219,3.4335,3211.4,3211.0,15.19756469]
[1763273689123,0.2257,3211.1,3211.0,15.42536469]
[1763273689310,0.2257,3211.1,3211.0,15.42636469]
[1763273691823,0.0356,3211.5,3211.0,15.42636469]
[1763273692420,0.72449087,3211.6,3211.0,15.42636469]
[1763273692927,0.72449087,3211.6,3211.5,0.3736]
[1763273692928,0.95019087,3211.6,3211.5,0.3736]
[1763273693622,0.95019087,3211.6,3211.5,0.2278]
[1763273694025,0.95019087,3211.6,3211.0,15.19856469]
[1763273695840,3.61000912,3212.1,3212.0,0.3736]
[1763273695841,5.7008,3212.1,3212.0,0.3736]
[1763273696334,5.9265,3212.1,3212.0,0.3736]
[1763273697328,5.7008,3212.1,3212.0,0.3736]
[1763273697530,3.2078,3212.1,3212.0,0.3736]
[1763273700341,0.00345777,3212.2,3212.1,0.2278]
[1763273701048,0.23705777,3212.2,3212.1,0.2278]
[1763273702041,0.23705777,3212.2,3212.1,15.2758]
[1763273703339,0.00345777,3212.2,3212.1,15.2758]
[1763273705138,0.00345777,3212.2,3212.1,18.4836]
[1763273705933,0.2336,3211.9,3211.8,0.24]
[1763273706133,0.2336,3211.5,3211.3,4.88410631]
[1763273706344,0.2336,3211.1,3211.0,0.38856469]
[1763273706646,0.2336,3211.1,3211.0,15.43556469]
[1763273708342,0.2336,3211.1,3211.0,0.00276469]
[1763273710442,0.2336,3211.1,3211.0,0.38136469]
[1763273712640,0.72751405,3211.6,3211.0,0.38136469]
[1763273714741,0.1421,3211.5,3211.0,0.38136469]
[1763273715144,0.72751405,3211.6,3211.0,0.38136469]
[1763273715444,6.53855702,3212.1,3211.6,0.2467]
[1763273715751,3.2078,3212.1,3212.0,0.3959]
[1763273716045,0.00466881,3212.5,3212.1,0.2467]
[1763273718654,0.23635777,3212.2,3212.1,0.2467]
[1763273719855,0.00345777,3212.2,3212.1,0.2467]
[1763273721056,0.23635777,3212.2,3212.1,0.2467]
[1763273721555,0.23635777,3212.2,3212.1,3.4545]
[1763273721956,0.00345777,3212.2,3212.1,3.4545]
[1763273723855,0.00466881,3212.5,3212.4,0.2467]
[1763273724249,3.2078,3213.0,3212.9,0.2467]
[1763273724850,3.21169063,3213.0,3212.9,0.2467]
[1763273725449,3.44459063,3213.0,3212.9,0.2467]
[1763273726852,3.44459063,3213.0,3212.6,0.00466881]
[1763273727259,3.44459063,3213.0,3212.9,0.2467]
[1763273728357,3.21169063,3213.0,3212.9,0.2467]
[1763273728659,3.2078,3214.2,3213.7,0.2315]
[1763273728955,3.4375,3214.2,3214.1,0.2315]
[1763273729459,0.23246576,3214.2,3214.1,0.2337318]
[1763273729958,0.00276576,3214.2,3214.1,0.2337318]
[1763273731055,0.23246576,3214.2,3214.1,0.2337318]
[1763273731262,0.00276576,3214.2,3214.1,0.2337318]
[1763273734849,0.23246576,3214.2,3214.1,0.2337318]
[1763273735255,0.23246576,3214.2,3214.1,0.0022318]
[1763273735556,3.44026576,3214.2,3214.1,0.0022318]
[1763273736158,9.44026576,3214.2,3214.1,3.18e-05]
[1763273736469,0.2297,3213.0,3212.9,3.4393]
[1763273737253,0.2297,3213.0,3212.9,3.44186096]
[1763273737557,3.2078,3213.6,3213.5,0.3677]
[1763273737760,0.00276576,3214.2,3213.5,0.3677]
[1763273737956,0.00276576,3214.2,3213.7,3.2078]
[1763273738469,0.23246576,3214.2,3214.1,0.2315]
[1763273742369,0.00276576,3214.2,3214.1,0.2315]
[1763273742771,0.23246576,3214.2,3214.1,0.2315]
[1763273743474,0.00276576,3214.2,3214.1,3.4393]
[1763273744163,0.23246576,3214.2,3214.1,3.4393]
[1763273746467,0.00276576,3214.2,3214.1,3.4393]
[1763273747875,0.23246576,3214.2,3214.1,3.4393]
[1763273748679,0.2297,3213.8,3213.7,3.4393]
[1763273750266,0.00276576,3214.2,3213.7,3.4393]
[1763273750462,0.00276576,3214.2,3214.1,0.2315]
[1763273750676,0.2297,3213.1,3213.0,0.3677]
[1763273750871,0.8359343,3213.9,3213.0,0.3677]
[1763273751073,0.72658149,3213.8,3213.3,3.2078]
[1763273751378,0.1415,3214.0,3213.3,3.2078]
[1763273751571,0.2297,3213.4,3213.3,3.2078]
[1763273751771,0.2297,3213.4,3213.0,0.1362]
[1763273751972,0.2297,3213.1,3213.0,0.3677]
[1763273753075,3.2078,3213.3,3213.2,0.2315]
[1763273753378,4.0437343,3213.8,3213.7,0.2315]
[1763273753579,3.93443976,3213.8,3213.7,0.2315]
[1763273753781,3.4375,3213.8,3213.5,0.1362]
[1763273753978,0.2297,3213.6,3213.5,0.3677]
[1763273756974,0.72701286,3213.7,3213.6,0.2315]
[1763273757174,0.95671286,3213.7,3213.6,0.2315]
[1763273759281,0.2297,3213.6,3213.5,0.1362]
[1763273759581,0.2297,3213.6,3213.0,0.1362]
[1763273761282,0.2297,3213.6,3213.5,0.3681]
[1763273761477,0.2297,3213.6,3213.0,0.1362]
[1763273761780,0.2452,3213.1,3213.0,0.3612]
[1763273761980,0.72701286,3213.7,3213.0,0.3612]
[1763273763890,0.2452,3213.1,3213.0,0.3612]
[1763273765494,0.2452,3213.1,3213.0,0.225]
[1763273765683,0.2452,3212.7,3212.6,0.00466881]
[1763273765879,0.2452,3211.9,3211.8,1.23040154]
[1763273766089,0.1415,3212.0,3211.5,2.36946787]
[1763273766090,0.2452,3211.6,3211.5,0.3681]
[1763273766388,0.97326667,3212.1,3212.0,0.3681]
[1763273766595,0.2452,3212.1,3212.0,0.3681]
[1763273766893,0.24772642,3212.1,3212.0,0.37104085]
[1763273767989,0.24772642,3212.1,3212.0,0.00294085]
[1763273768290,3.45552642,3212.1,3212.0,0.00294085]
[1763273770791,0.2452,3211.8,3211.7,0.00466881]
[1763273771294,3.21032642,3212.1,3211.7,0.22966881]
[1763273771497,0.2452,3211.8,3211.7,0.00466881]
[1763273771793,0.2452,3211.8,3211.7,0.00797672]
[1763273773797,3.21032642,3212.1,3211.7,0.23297672]
[1763273773982,0.2333,3211.8,3211.7,0.23297672]
[1763273783600,0.2333,3211.8,3211.7,0.00797672]
[1763273784102,0.2333,3211.8,3211.7,0.25067672]
[1763273786101,0.00252642,3212.1,3212.0,0.3826]
[1763273791107,0.25022642,3212.1,3211.8,3.2078]
[1763273791406,0.2477,3211.9,3211.8,3.2078]
[1763273792904,0.00252642,3212.1,3211.8,3.4324]
[1763273793108,0.25022642,3212.1,3212.0,0.3697]
[1763273793308,0.00252642,3212.1,3212.0,0.3697]
[1763273793506,0.25022642,3212.1,3212.0,0.3697]
[1763273795808,0.98064293,3212.1,3212.0,0.3697]
[1763273796210,0.25022642,3212.1,3212.0,0.3697]
[1763273796412,0.98064293,3212.1,3212.0,0.3697]
[1763273796607,0.25022642,3212.1,3212.0,0.3697]
[1763273796810,0.98064293,3212.1,3212.0,0.3697]
[1763273797013,0.73294293,3212.1,3212.0,0.3697]
[1763273797214,0.00252642,3212.1,3212.0,0.3697]
[1763273797414,0.73294293,3212.1,3212.0,0.3697]
[1763273798016,0.00252642,3212.1,3212.0,0.3697]
[1763273799015,0.73294293,3212.1,3212.0,0.3697]
[1763273799213,0.00252642,3212.1,3212.0,0.3697]
[1763273799415,0.25022642,3212.1,3212.0,0.3697]
[1763273800312,0.00252642,3212.1,3212.0,0.3697]
[1763273803306,3.2078,3212.5,3212.4,0.2246]
[1763273804218,3.21163281,3212.5,3212.4,0.2246]
[1763273811725,0.00383281,3212.5,3212.4,0.2246]
[1763273813527,0.25153281,3212.5,3212.4,0.2246]
[1763273815028,0.25153281,3212.5,3212.1,4.88148276]
[1763273815424,0.25153281,3212.5,3212.4,0.2246]
[1763273815726,0.00383281,3212.5,3212.4,0.2246]
[1763273816832,0.00383281,3212.5,3212.4,1.89828276]
[1763273818431,0.25153281,3212.5,3212.4,0.2246]
[1763273818927,0.00383281,3212.5,3212.4,0.2246]
[1763273821738,0.23973281,3212.5,3212.1,3.2078]
[1763273821938,0.2359,3212.2,3212.1,3.4365]
[1763273822933,0.23973281,3212.5,3212.4,0.2287]
[1763273823333,0.23973281,3212.5,3212.1,3.2078]
[1763273823528,0.2359,3212.2,3212.1,3.4365]
[1763273823842,0.2359,3212.2,3212.1,3.2078]
[1763273824837,0.2359,3211.8,3211.7,0.23667672]
[1763273825141,3.2078,3212.4,3211.7,0.23667672]
[1763273825142,0.72940809,3212.3,3212.2,0.2287]
[1763273825333,0.96530809,3212.3,3212.2,0.2287]
[1763273825644,0.2359,3212.1,3212.0,0.1413]
[1763273825843,0.2359,3212.1,3212.0,0.37]
[1763273826829,0.2359,3211.8,3211.7,0.23667672]
[1763273827537,3.2078,3212.0,3211.7,0.23667672]
[1763273827745,3.4437,3212.0,3211.9,0.2287]
[1763273828141,3.2078,3212.0,3211.9,0.2287]
[1763273828338,3.2078,3212.4,3212.3,0.2287]
[1763273830134,0.00383281,3212.5,3212.4,0.2287]
[1763273835245,0.00383281,3212.5,3212.4,1.90238276]
[1763273838356,0.00383281,3212.5,3212.4,0.2287]
[1763273838945,0.00383281,3212.5,3212.4,1.90238276]
[1763273839344,0.00383281,3212.5,3212.4,0.2287]
[1763273847652,0.00383281,3212.5,3212.4,3.4365]
[1763273848159,3.2078,3213.1,3213.0,0.3681]
[1763273848952,3.435,3213.6,3213.5,0.2303]
[1763273849152,4.16772276,3213.6,3213.5,0.3662]
[1763273849557,3.43865371,3213.6,3213.5,0.3662]
[1763273851458,3.43865371,3213.6,3213.5,0.2303]
[1763273853459,0.2359,3213.3,3213.2,0.24476881]
[1763273858064,0.2359,3213.3,3213.2,0.00466881]
[1763273858065,3.4437,3213.3,3213.2,0.00466881]
[1763273861765,0.2359,3213.3,3213.2,0.00466881]
[1763273861966,3.4437,3213.3,3213.2,0.00466881]
[1763273864164,3.4437,3213.3,3213.2,0.24476881]
[1763273865364,3.2078,3213.3,3213.2,0.24476881]
[1763273865673,3.4437,3213.3,3213.2,0.00466881]
[1763273866065,3.4437,3213.3,3213.2,0.24476881]
[1763273867472,3.4437,3213.3,3213.2,0.00466881]
[1763273867673,3.4437,3213.3,3213.2,0.24476881]
[1763273869272,3.4437,3213.3,3213.2,0.00466881]
[1763273871077,4.17277145,3213.3,3213.2,0.00466881]
[1763273876984,4.17125814,3213.3,3213.2,0.00466881]
[1763273878891,0.96345814,3213.3,3213.2,0.00466881]
[1763273879092,4.17125814,3213.3,3213.2,0.00466881]
[1763273879589,0.2398,3212.7,3212.6,1.67368276]
[1763273879789,0.2398,3212.6,3212.5,1.67368276]
[1763273880284,0.2398,3212.5,3212.4,3.4394]
[1763273880792,0.24446881,3212.8,3212.7,0.2316]
[1763273886690,0.24446881,3212.8,3212.6,1.67534688]
[1763273886898,0.2398,3212.6,3212.5,1.67534688]
[1763273887092,0.2398,3212.3,3212.2,0.00466881]
[1763273887293,0.2398,3212.3,3212.2,0.23626881]
[1763273887594,3.2078,3212.4,3212.3,0.2316]
[1763273887991,3.4476,3212.4,3212.3,0.2316]
[1763273889496,3.2078,3212.4,3212.3,0.2316]
[1763273890797,3.4476,3212.4,3212.3,0.2316]
[1763273893797,3.2078,3212.4,3212.3,0.2316]
[1763273894600,3.4482,3212.4,3212.3,0.2316]
[1763273895298,3.4482,3212.4,3212.2,0.00466881]
[1763273895502,3.2078,3212.4,3212.3,0.2418]
[1763273895804,3.4482,3212.4,3212.3,0.2418]
[1763273898500,0.00466881,3212.8,3212.7,0.2418]
[1763273898705,0.00466881,3212.8,3212.7,3.4496]
[1763273898906,0.24405371,3213.6,3213.5,0.3804]
[1763273900499,0.24405371,3213.6,3213.5,0.2418]
[1763273900696,0.2404,3213.2,3213.1,1.67226615]
[1763273901004,0.2404,3212.7,3212.6,1.67226615]
[1763273901508,0.2404,3212.7,3212.6,0.2418]
[1763273901706,0.2404,3212.6,3212.5,5.01866615]
[1763273902007,0.2404,3212.6,3212.5,5.26046615]
[1763273903808,0.2404,3212.6,3212.5,3.5882]
[1763273905619,0.2404,3213.1,3213.0,0.1386]
[1763273905804,0.2404,3213.1,3212.5,5.01866615]
[1763273909120,0.2274,3213.0,3212.9,0.2379]
[1763273909320,0.2274,3213.0,3212.5,5.01866615]
[1763273910219,0.2274,3212.6,3212.5,5.25656615]
[1763273910421,0.2274,3212.6,3212.5,3.5843]
[1763273912022,0.137,3213.0,3212.5,5.25656615]
[1763273912219,0.137,3213.0,3212.5,3.5843]
[1763273912419,0.137,3213.0,3212.5,5.25656615]
[1763273912625,0.72183745,3213.2,3212.5,5.25656615]
[1763273913819,0.72183745,3213.2,3212.5,3.5843]
[1763273914010,0.2274,3212.6,3212.5,3.2078]
[1763273914419,0.2274,3212.3,3212.2,0.00466881]
[1763273914726,0.2274,3211.8,3211.7,0.00330791]
[1763273915018,0.2274,3211.8,3211.7,0.24120791]
[1763273915414,0.2274,3211.8,3211.7,0.00330791]
[1763273916726,0.2274,3211.8,3211.7,0.24120791]
[1763273918812,0.23206881,3212.1,3212.0,0.2379]
[1763273919125,0.23206881,3212.1,3212.0,0.3791]
[1763273919426,0.23206881,3212.1,3211.7,0.00330791]
[1763273919719,0.2274,3211.8,3211.7,0.00330791]
[1763273920524,0.00466881,3212.1,3211.7,0.24120791]
[1763273920729,0.23206881,3212.1,3212.0,0.2379]
[1763273921028,0.2274,3211.8,3211.7,0.24120791]
[1763273921521,0.2274,3211.8,3211.7,0.00330791]
[1763273921716,0.2274,3211.8,3211.7,0.24120791]
[1763273921913,0.00466881,3212.1,3211.7,0.24120791]
[1763273922719,0.2274,3211.8,3211.7,0.24120791]
[1763273923323,3.4352,3211.8,3211.7,0.00330791]
[1763273924826,3.4352,3211.8,3211.7,0.24120791]
[1763273925130,3.4352,3211.8,3211.7,0.00330791]
[1763273926631,0.3617,3211.5,3211.4,0.00466881]
[1763273926830,0.2274,3211.2,3211.1,3.2078]
[1763273927829,0.230703,3211.2,3211.1,3.44943846]
[1763273930229,0.003303,3211.2,3211.1,3.44943846]
[1763273930735,0.230703,3211.2,3211.1,3.44943846]
[1763273933936,0.003303,3211.2,3211.1,3.44943846]
[1763273935536,0.230703,3211.2,3211.1,3.44943846]
[1763273936033,0.003303,3211.2,3211.1,3.44943846]
[1763273936629,0.230703,3211.2,3211.1,0.00373846]
[1763273937827,0.2274,3210.9,3210.8,0.24256881]
[1763273939041,0.2274,3210.9,3210.8,0.24482789]
[1763273940036,0.230703,3211.2,3211.1,0.2379]
[1763273940836,0.003303,3211.2,3211.1,3.4457]
[1763273941032,0.00466881,3212.1,3211.1,9.4457]
[1763273941237,0.23266881,3212.1,3212.0,0.3936]
[1763273942234,0.23515603,3212.1,3212.0,0.2461]
[1763273942539,0.95918323,3212.1,3212.0,0.2461]
[1763273943542,0.95918323,3212.1,3212.0,0.3936]
[1763273944444,0.00715603,3212.1,3212.0,0.3936]
[1763273947442,0.23515603,3212.1,3212.0,0.3936]
[1763273947644,0.23515603,3212.1,3211.6,1.67226615]
[1763273947946,0.23515603,3212.1,3211.5,1.81976615]
[1763273948844,0.23515603,3212.1,3212.0,0.3936]
[1763273949340,0.00715603,3212.1,3212.0,0.3936]
[1763273957245,0.2279,3211.6,3211.5,0.3944]
[1763273957442,0.2279,3211.5,3211.4,3.2078]
[1763273958346,0.2279,3211.5,3211.4,3.4547]
[1763273962750,0.2279,3211.5,3211.4,0.2469]
[1763273962945,0.2279,3211.1,3210.8,0.00692789]
[1763273963138,0.2279,3210.9,3210.8,0.25382789]
[1763273963343,3.2078,3211.3,3210.8,0.25382789]
[1763273963538,3.4357,3211.3,3211.2,0.2469]
[1763273965153,0.2279,3210.9,3210.8,0.00692789]
[1763273965452,0.2279,3210.9,3210.8,0.25382789]
[1763273965651,3.4357,3211.3,3211.2,0.2469]
[1763273966847,0.2279,3211.3,3211.2,0.2469]
[1763273967154,0.95146556,3211.6,3211.5,0.2469]
[1763273968352,0.72356556,3211.6,3211.5,0.3903]
[1763273968559,3.2078,3211.7,3211.6,0.2296]
[1763273969259,3.45,3211.7,3211.6,0.2296]
[1763273976563,0.2422,3211.7,3211.6,0.2296]
[1763273977964,3.2078,3211.8,3211.7,0.2296]
[1763273978161,4.17395265,3211.8,3211.7,0.2296]
[1763273980064,0.2422,3211.6,3211.5,0.373]
[1763273982761,3.2078,3211.8,3211.7,0.2296]
[1763273982968,3.93216218,3211.8,3211.7,0.2296]
[1763273983169,0.00715603,3212.1,3212.0,0.373]